[Event "1st SOA-GM Festival 2024"]
[Site "Bhubaneswar"]
[Date "2024.02.01"]
[Round "5.13"]
[White "Sidhant, Mohapatra"]
[Black "Vrashank Chouhan"]
[Result "1/2-1/2"]
[WhiteElo "2421"]
[BlackElo "2046"]
[PlyCount "102"]
[EventDate "2024.02.01"]
[EventType "swiss"]
[EventCountry "IND"]
[TimeControl "5400+30"]

1. d4 {[%emt 0:00:05]} d5 {[%emt 0:04:15]} 2. Nf3 {[%emt 0:00:16]} Nf6 {[%emt 0:00:07]} 3. c4 {[%emt 0:00:04]} c6 {[%emt 0:00:05]} 4. e3 {[%emt 0:00:14]} Bf5 {[%emt 0:00:12]} 5. Bd3 {[%emt 0:01:33]} Bg6 {[%emt 0:05:05]} 6. Nc3 {[%emt 0:00:22]} e6 {[%emt 0:00:38]} 7. O-O {[%emt 0:00:06]} Nbd7 {[%emt 0:00:45]} 8. Qe2 {[%emt 0:01:10]} Ne4 {[%emt 0:06:45]} 9. Nd2 {[%emt 0:03:27]} Ndf6 {[%emt 0:04:39]} 10. f3 {[%emt 0:01:41]} Nxc3 {[%emt 0:00:24]} 11. bxc3 {[%emt 0:00:02]} Be7 {[%emt 0:11:17]} 12. e4 {[%emt 0:01:03]} O-O {[%emt 0:01:15]} 13. Nb3 {[%emt 0:04:07]} Rc8 {[%emt 1:01:33]} 14. Bg5 {[%emt 0:16:33]} Nd7 {[%emt 0:00:00]} 15. Be3 {[%emt 0:04:32]} c5 {[%emt 0:00:00]} 16. cxd5 {[%emt 0:09:30]} exd5 {[%emt 0:00:00]} 17. Nd2 {[%emt 0:00:39]} Qa5 {[%emt 0:00:00]} 18. Bb5 {[%emt 0:04:10]} Rfd8 {[%emt 0:00:00]} 19. exd5 {[%emt 0:07:16]} c4 {[%emt 0:00:00]} 20. Bxc4 {[%emt 0:02:19]} Nb6 {[%emt 0:00:00]} 21. Bb3 {[%emt 0:14:30]} Rxc3 {[%emt 0:00:00]} 22. Ne4 {[%emt 0:00:37]} Rcc8 {[%emt 0:00:00]} 23. Bd2 {[%emt 0:07:51]} Nd7 {[%emt 0:00:00]} 24. Be3 {[%emt 0:00:00]} Nb6 {[%emt 0:00:00]} 25. Bd2 {[%emt 0:01:00]} Bb4 {[%emt 0:00:00]} 26. Rfc1 {[%emt 0:02:31]} Nxd5 {[%emt 0:00:00]} 27. Rxc8 {[%emt 0:08:02]} Rxc8 {[%emt 0:00:00]} 28. Rc1 {[%emt 0:01:29]} Rxc1+ {[%emt 0:00:29]} 29. Bxc1 {[%emt 0:00:02]} Nb6 {[%emt 0:02:18]} 30. Ng5 {[%emt 0:05:58]} Kf8 {[%emt 0:00:11]} 31. h4 {[%emt 0:01:53]} Bc3 {[%emt 0:02:28]} 32. Qe3 {[%emt 0:00:47]} h6 {[%emt 0:01:03]} 33. Nh3 {[%emt 0:01:11]} Qb4 {[%emt 0:00:39]} 34. Ba3 {[%emt 0:00:07]} Qxa3 {[%emt 0:00:03]} 35. Qxc3 {[%emt 0:00:06]} Qd6 {[%emt 0:00:38]} 36. Nf2 {[%emt 0:00:47]} Qc6 {[%emt 0:01:51]} 37. Qb4+ {[%emt 0:01:41]} Kg8 {[%emt 0:00:02]} 38. Qe1 {[%emt 0:00:08]} Nd5 {[%emt 0:01:11]} 39. Ng4 {[%emt 0:00:35]} Bf5 {[%emt 0:01:31]} 40. Ne5 {[%emt 0:00:21]} Qb6 {[%emt 0:00:09]} 41. Qf2 {[%emt 0:01:31]} Be6 {[%emt 0:00:07]} 42. Nd3 {[%emt 0:00:39]} Nc3 {[%emt 0:00:56]} 43. Nc5 {[%emt 0:00:04]} Bxb3 {[%emt 0:00:10]} 44. axb3 {[%emt 0:00:35]} Qb4 {[%emt 0:01:09]} 45. Kh2 {[%emt 0:00:18]} b6 {[%emt 0:00:03]} 46. Ne4 {[%emt 0:00:55]} Nxe4 {[%emt 0:00:10]} 47. fxe4 {[%emt 0:00:01]} Qxb3 {[%emt 0:00:07]} 48. d5 {[%emt 0:00:11]} Qc3 {[%emt 0:01:06]} 49. Qf4 {[%emt 0:00:59]} f6 {[%emt 0:00:15]} 50. Qb8+ {[%emt 0:00:25]} Kh7 {[%emt 0:00:02]} 51. Qe8 {[%emt 0:00:56]} Qe1 {[%emt 0:01:01]} 1/2-1/2

[Event "1st SOA-GM Festival 2024"]
[Site "Bhubaneswar"]
[Date "2024.02.01"]
[Round "5.14"]
[White "Namitbir Singh Walia"]
[Black "Barath Kalyan M"]
[Result "1/2-1/2"]
[WhiteElo "2408"]
[BlackElo "2040"]
[PlyCount "61"]
[EventDate "2024.02.01"]
[EventType "swiss"]
[EventCountry "IND"]
[TimeControl "5400+30"]

1. e4 {[%emt 0:00:03]} d6 {[%emt 0:00:24]} 2. d4 {[%emt 0:00:03]} Nf6 {[%emt 0:00:10]} 3. Nc3 {[%emt 0:00:05]} e5 {[%emt 0:00:11]} 4. Nf3 {[%emt 0:00:21]} Nbd7 {[%emt 0:00:06]} 5. Bc4 {[%emt 0:00:19]} Be7 {[%emt 0:00:06]} 6. O-O {[%emt 0:00:34]} h6 {[%emt 0:00:54]} 7. a4 {[%emt 0:01:18]} c6 {[%emt 0:00:18]} 8. a5 {[%emt 0:11:10]} O-O {[%emt 0:00:54]} 9. Re1 {[%emt 0:01:42]} Re8 {[%emt 0:00:10]} 10. h3 {[%emt 0:01:58]} Bf8 {[%emt 0:00:29]} 11. d5 {[%emt 0:10:20]} cxd5 {[%emt 0:08:59]} 12. Nxd5 {[%emt 0:01:31]} Nxd5 {[%emt 0:06:51]} 13. Qxd5 {[%emt 0:03:04]} Qe7 {[%emt 0:01:06]} 14. b3 {[%emt 0:18:08]} Nf6 {[%emt 0:00:53]} 15. Qd3 {[%emt 0:00:47]} Qc7 {[%emt 0:05:17]} 16. Bb2 {[%emt 0:03:47]} Be6 {[%emt 0:01:06]} 17. Bxe6 {[%emt 0:02:30]} fxe6 {[%emt 0:01:01]} 18. c4 {[%emt 0:01:21]} Nh5 {[%emt 0:01:02]} 19. Red1 {[%emt 0:02:43]} Nf4 {[%emt 0:00:57]} 20. Qe3 {[%emt 0:01:33]} Rec8 {[%emt 0:11:09]} 21. g3 {[%emt 0:02:19]} Ng6 {[%emt 0:00:15]} 22. Kg2 {[%emt 0:06:18]} Be7 {[%emt 0:00:49]} 23. h4 {[%emt 0:04:26]} Nh8 {[%emt 0:05:10]} 24. Ne1 {[%emt 0:01:49]} Nf7 {[%emt 0:00:18]} 25. Nd3 {[%emt 0:00:55]} Bf6 {[%emt 0:02:02]} 26. Qe2 {[%emt 0:01:19]} Qe7 {[%emt 0:04:52]} 27. Qg4 {[%emt 0:00:43]} Re8 {[%emt 0:02:33]} 28. Ba3 {[%emt 0:02:43]} Qc7 {[%emt 0:00:38]} 29. Bb2 {[%emt 0:00:53]} Qe7 {[%emt 0:02:16]} 30. Rd2 {[%emt 0:04:40]} Rad8 {[%emt 0:04:43]} 31. Ne1 {[%emt 0:02:44]} 1/2-1/2

[Event "1st SOA-GM Festival 2024"]
[Site "Bhubaneswar"]
[Date "2024.02.01"]
[Round "5.15"]
[White "Liyanage, Ranindu Dilshan"]
[Black "Abhay Bandewar"]
[Result "1/2-1/2"]
[WhiteElo "2366"]
[BlackElo "2025"]
[PlyCount "160"]
[EventDate "2024.02.01"]
[EventType "swiss"]
[EventCountry "IND"]
[TimeControl "5400+30"]

1. Nf3 {[%emt 0:00:18]} c5 {[%emt 0:01:20]} 2. c4 {[%emt 0:00:31]} Nc6 {[%emt 0:00:53]} 3. Nc3 {[%emt 0:00:19]} g6 {[%emt 0:00:40]} 4. e3 {[%emt 0:00:15]} Nf6 {[%emt 0:00:58]} 5. d4 {[%emt 0:00:07]} cxd4 {[%emt 0:01:38]} 6. exd4 {[%emt 0:00:08]} d5 {[%emt 0:04:39]} 7. cxd5 {[%emt 0:00:12]} Nxd5 {[%emt 0:00:19]} 8. Qb3 {[%emt 0:00:25]} e6 {[%emt 0:10:18]} 9. Bb5 {[%emt 0:03:35]} Bg7 {[%emt 0:06:17]} 10. O-O {[%emt 0:10:36]} O-O {[%emt 0:00:48]} 11. Bxc6 {[%emt 0:01:53]} bxc6 {[%emt 0:00:15]} 12. Na4 {[%emt 0:14:51]} Ba6 {[%emt 0:03:35]} 13. Re1 {[%emt 0:01:53]} Rb8 {[%emt 0:03:47]} 14. Qa3 {[%emt 0:08:07]} Nb4 {[%emt 0:14:09]} 15. Nc5 {[%emt 0:04:05]} Bc4 {[%emt 0:01:06]} 16. Bg5 {[%emt 0:16:52]} Qd5 {[%emt 0:10:08]} 17. b3 {[%emt 0:01:52]} Nc2 {[%emt 0:06:52]} 18. bxc4 {[%emt 0:03:50]} Qxg5 {[%emt 0:01:15]} 19. Nxg5 {[%emt 0:04:56]} Nxa3 {[%emt 0:00:07]} 20. Nd7 {[%emt 0:00:03]} Nc2 {[%emt 0:09:00]} 21. Nxb8 {[%emt 0:00:57]} Nxe1 {[%emt 0:00:06]} 22. Nxc6 {[%emt 0:00:55]} Nc2 {[%emt 0:00:07]} 23. Rb1 {[%emt 0:02:20]} Nxd4 {[%emt 0:02:13]} 24. Nxa7 {[%emt 0:00:53]} Ne2+ {[%emt 0:01:04]} 25. Kf1 {[%emt 0:00:45]} Nc3 {[%emt 0:00:07]} 26. Rb7 {[%emt 0:02:42]} Bd4 {[%emt 0:08:39]} 27. Nb5 {[%emt 0:03:37]} Nxb5 {[%emt 0:00:31]} 28. cxb5 {[%emt 0:00:34]} Ra8 {[%emt 0:00:56]} 29. Rxf7 {[%emt 0:03:17]} Rxa2 {[%emt 0:00:58]} 30. Rf3 {[%emt 0:01:17]} Rb2 {[%emt 0:01:33]} 31. Nxe6 {[%emt 0:03:35]} Bg7 {[%emt 0:00:04]} 32. Ra3 {[%emt 0:01:44]} Rxb5 {[%emt 0:03:27]} 33. Ra8+ {[%emt 0:00:24]} Kf7 {[%emt 0:00:09]} 34. Nd8+ {[%emt 0:00:23]} Kg8 {[%emt 0:05:08]} 35. Nb7+ {[%emt 0:03:40]} Bf8 {[%emt 0:00:17]} 36. Nd6 {[%emt 0:00:18]} Rb2 {[%emt 0:01:27]} 37. Ne4 {[%emt 0:00:57]} Rb7 {[%emt 0:01:32]} 38. Ng5 {[%emt 0:01:41]} Re7 {[%emt 0:00:10]} 39. f3 {[%emt 0:00:26]} h6 {[%emt 0:01:11]} 40. Ne4 {[%emt 0:00:04]} Kg7 {[%emt 0:00:09]} 41. Kf2 {[%emt 0:00:33]} Rb7 {[%emt 0:00:22]} 42. g4 {[%emt 0:00:47]} Bb4 {[%emt 0:00:36]} 43. h4 {[%emt 0:00:43]} Be7 {[%emt 0:00:36]} 44. Kg3 {[%emt 0:00:15]} Bb4 {[%emt 0:00:12]} 45. Ra1 {[%emt 0:00:37]} Rd7 {[%emt 0:00:37]} 46. Kh3 {[%emt 0:00:39]} Rf7 {[%emt 0:00:58]} 47. Kg2 {[%emt 0:00:23]} Be7 {[%emt 0:00:09]} 48. Rh1 {[%emt 0:02:59]} Bd8 {[%emt 0:00:18]} 49. h5 {[%emt 0:00:45]} Bg5 {[%emt 0:01:56]} 50. hxg6 {[%emt 0:01:31]} Kxg6 {[%emt 0:00:08]} 51. Ra1 {[%emt 0:00:17]} Bf4 {[%emt 0:00:24]} 52. Ra6+ {[%emt 0:00:39]} Kg7 {[%emt 0:00:24]} 53. Kh3 {[%emt 0:00:49]} Rc7 {[%emt 0:00:24]} 54. Nf6 {[%emt 0:00:24]} Rf7 {[%emt 0:00:36]} 55. Ne4 {[%emt 0:00:36]} Rc7 {[%emt 0:00:24]} 56. Nf6 {[%emt 0:00:24]} Rf7 {[%emt 0:00:42]} 57. Nh5+ {[%emt 0:00:13]} Kh7 {[%emt 0:00:17]} 58. Ra4 {[%emt 0:00:28]} Be5 {[%emt 0:01:16]} 59. f4 {[%emt 0:00:15]} Bg7 {[%emt 0:00:27]} 60. f5 {[%emt 0:00:19]} Bc3 {[%emt 0:00:30]} 61. Kg3 {[%emt 0:00:43]} Bd2 {[%emt 0:00:17]} 62. Kf3 {[%emt 0:00:42]} Bg5 {[%emt 0:00:51]} 63. Ke4 {[%emt 0:00:45]} Re7+ {[%emt 0:00:17]} 64. Kd5 {[%emt 0:00:20]} Kg8 {[%emt 0:00:41]} 65. Ra8+ {[%emt 0:00:44]} Kf7 {[%emt 0:00:06]} 66. Rh8 {[%emt 0:00:27]} Rd7+ {[%emt 0:00:27]} 67. Ke5 {[%emt 0:00:26]} Re7+ {[%emt 0:00:09]} 68. Kd5 {[%emt 0:00:31]} Rd7+ {[%emt 0:00:07]} 69. Ke4 {[%emt 0:00:05]} Re7+ {[%emt 0:00:07]} 70. Kd4 {[%emt 0:00:22]} Rd7+ {[%emt 0:00:27]} 71. Ke4 {[%emt 0:00:07]} Re7+ {[%emt 0:00:07]} 72. Kf3 {[%emt 0:00:12]} Re3+ {[%emt 0:00:10]} 73. Kf2 {[%emt 0:00:28]} Re4 {[%emt 0:00:22]} 74. Rh7+ {[%emt 0:01:13]} Kf8 {[%emt 0:00:09]} 75. Rh8+ {[%emt 0:00:59]} Kf7 {[%emt 0:00:04]} 76. Rh7+ {[%emt 0:00:15]} Kf8 {[%emt 0:00:04]} 77. Kg3 {[%emt 0:01:08]} Re3+ {[%emt 0:00:05]} 78. Kg2 {[%emt 0:00:05]} Re4 {[%emt 0:00:04]} 79. Rb7 {[%emt 0:00:38]} Rxg4+ {[%emt 0:00:21]} 80. Kf3 {[%emt 0:00:05]} Rh4 {[%emt 0:02:01]} 1/2-1/2

[Event "1st SOA-GM Festival 2024"]
[Site "Bhubaneswar"]
[Date "2024.02.01"]
[Round "5.16"]
[White "Shahil Dey"]
[Black "Singgih, Diajeng Theresa"]
[Result "1-0"]
[WhiteElo "2363"]
[BlackElo "1867"]
[PlyCount "79"]
[EventDate "2024.02.01"]
[EventType "swiss"]
[EventCountry "IND"]
[TimeControl "5400+30"]

1. Nf3 {[%emt 0:00:02]} d5 {[%emt 0:00:45]} 2. c4 {[%emt 0:00:04]} e6 {[%emt 0:02:16]} 3. g3 {[%emt 0:00:05]} Nf6 {[%emt 0:00:09]} 4. Bg2 {[%emt 0:00:04]} Be7 {[%emt 0:00:34]} 5. O-O {[%emt 0:00:07]} O-O {[%emt 0:01:13]} 6. d4 {[%emt 0:00:13]} dxc4 {[%emt 0:01:21]} 7. Qc2 {[%emt 0:01:22]} c6 {[%emt 0:03:20]} 8. Qxc4 {[%emt 0:02:49]} b5 {[%emt 0:00:51]} 9. Qc2 {[%emt 0:01:35]} Bb7 {[%emt 0:00:26]} 10. Nc3 {[%emt 0:05:03]} Nbd7 {[%emt 0:11:42]} 11. a3 {[%emt 0:04:03]} Rc8 {[%emt 0:04:28]} 12. Rd1 {[%emt 0:01:09]} Qb6 {[%emt 0:02:12]} 13. b4 {[%emt 0:04:24]} a5 {[%emt 0:00:53]} 14. Rb1 {[%emt 0:00:13]} axb4 {[%emt 0:03:59]} 15. axb4 {[%emt 0:00:48]} Nd5 {[%emt 0:00:25]} 16. Na2 {[%emt 0:00:20]} Ra8 {[%emt 0:02:17]} 17. Bg5 {[%emt 0:20:57]} f6 {[%emt 0:03:22]} 18. Bd2 {[%emt 0:00:44]} Ra3 {[%emt 0:02:51]} 19. Nc1 {[%emt 0:02:32]} Qa7 {[%emt 0:02:42]} 20. Nd3 {[%emt 0:05:52]} N7b6 {[%emt 0:03:08]} 21. e4 {[%emt 0:05:58]} Nc7 {[%emt 0:04:22]} 22. Bf4 {[%emt 0:02:08]} Na6 {[%emt 0:02:45]} 23. Bh3 {[%emt 0:04:25]} f5 {[%emt 0:03:14]} 24. Nfe5 {[%emt 0:08:15]} g5 {[%emt 0:13:06]} 25. Bc1 {[%emt 0:00:35]} Ra4 {[%emt 0:01:32]} 26. Nxc6 {[%emt 0:00:39]} Bxc6 {[%emt 0:00:18]} 27. Qxc6 {[%emt 0:00:04]} g4 {[%emt 0:11:59]} 28. Qxe6+ {[%emt 0:00:22]} Kh8 {[%emt 0:00:34]} 29. Bg2 {[%emt 0:02:22]} Rf6 {[%emt 0:03:19]} 30. Qe5 {[%emt 0:00:13]} Kg8 {[%emt 0:05:21]} 31. exf5 {[%emt 0:01:09]} Qd7 {[%emt 0:01:06]} 32. Bg5 {[%emt 0:01:07]} Rf7 {[%emt 0:03:59]} 33. Bxe7 {[%emt 0:00:52]} Rxe7 {[%emt 0:00:02]} 34. Qf4 {[%emt 0:00:07]} Nc4 {[%emt 0:00:32]} 35. Ne5 {[%emt 0:00:29]} Qd6 {[%emt 0:00:57]} 36. f6 {[%emt 0:00:09]} Rc7 {[%emt 0:00:27]} 37. Qg5+ {[%emt 0:02:39]} Kh8 {[%emt 0:01:08]} 38. f7 {[%emt 0:00:59]} Rc8 {[%emt 0:00:55]} 39. Bd5 {[%emt 0:00:06]} h6 {[%emt 0:01:02]} 40. Qg8+ {[%emt 0:00:05]} 1-0

[Event "1st SOA-GM Festival 2024"]
[Site "Bhubaneswar"]
[Date "2024.02.01"]
[Round "5.17"]
[White "Roy Chowdhury, Saptarshi"]
[Black "Sharnarthi Viresh"]
[Result "1-0"]
[WhiteElo "2233"]
[BlackElo "1926"]
[PlyCount "115"]
[EventDate "2024.02.01"]
[EventType "swiss"]
[EventCountry "IND"]
[TimeControl "5400+30"]

1. e4 {[%emt 0:00:33]} c5 {[%emt 0:00:04]} 2. Nf3 {[%emt 0:00:05]} d6 {[%emt 0:00:05]} 3. Bc4 {[%emt 0:00:28]} Nc6 {[%emt 0:04:25]} 4. d3 {[%emt 0:00:42]} Nf6 {[%emt 0:00:10]} 5. h3 {[%emt 0:00:04]} g6 {[%emt 0:04:23]} 6. O-O {[%emt 0:01:38]} Bg7 {[%emt 0:00:04]} 7. c3 {[%emt 0:00:31]} O-O {[%emt 0:00:16]} 8. Bb3 {[%emt 0:00:20]} b5 {[%emt 0:01:15]} 9. Re1 {[%emt 0:00:06]} a5 {[%emt 0:02:51]} 10. Be3 {[%emt 0:07:15]} a4 {[%emt 0:02:48]} 11. Bc2 {[%emt 0:00:11]} Nd7 {[%emt 0:00:51]} 12. a3 {[%emt 0:01:21]} Bb7 {[%emt 0:06:39]} 13. Nbd2 {[%emt 0:03:19]} Nb6 {[%emt 0:01:28]} 14. Qc1 {[%emt 0:02:20]} Qc7 {[%emt 0:01:44]} 15. Nf1 {[%emt 0:00:42]} Rfd8 {[%emt 0:00:20]} 16. Bh6 {[%emt 0:03:19]} Bh8 {[%emt 0:00:40]} 17. Ng3 {[%emt 0:05:41]} b4 {[%emt 0:01:19]} 18. Ng5 {[%emt 0:08:53]} bxc3 {[%emt 0:08:30]} 19. bxc3 {[%emt 0:01:20]} Bxc3 {[%emt 0:00:04]} 20. Qf4 {[%emt 0:05:02]} e6 {[%emt 0:02:54]} 21. Rab1 {[%emt 0:00:18]} Ra6 {[%emt 0:05:29]} 22. e5 {[%emt 0:23:43]} Qe7 {[%emt 0:02:33]} 23. exd6 {[%emt 0:05:06]} Rxd6 {[%emt 0:00:02]} 24. N3e4 {[%emt 0:01:15]} Be5 {[%emt 0:02:07]} 25. Qh4 {[%emt 0:02:00]} Rd5 {[%emt 0:04:21]} 26. f4 {[%emt 0:15:18]} Bd4+ {[%emt 0:00:05]} 27. Kh1 {[%emt 0:00:14]} Bc8 {[%emt 0:01:03]} 28. g4 {[%emt 0:01:20]} f5 {[%emt 0:09:36]} 29. gxf5 {[%emt 0:00:40]} Rxf5 {[%emt 0:00:02]} 30. Ng3 {[%emt 0:01:46]} Rf7 {[%emt 0:00:51]} 31. Qg4 {[%emt 0:00:30]} e5 {[%emt 0:00:59]} 32. f5 {[%emt 0:00:22]} Bxf5 {[%emt 0:00:24]} 33. Nxf5 {[%emt 0:00:06]} Rxf5 {[%emt 0:00:11]} 34. Qg2 {[%emt 0:00:38]} Qd6 {[%emt 0:15:25]} 35. Ne4 {[%emt 0:01:32]} Qd8 {[%emt 0:06:26]} 36. Rf1 {[%emt 0:00:29]} Ne7 {[%emt 0:00:01]} 37. Bg5 {[%emt 0:02:28]} Qc7 {[%emt 0:02:17]} 38. Bxe7 {[%emt 0:03:13]} Rxf1+ {[%emt 0:00:03]} 39. Rxf1 {[%emt 0:00:11]} Qxe7 {[%emt 0:00:05]} 40. Bb1 {[%emt 0:00:07]} Ra7 {[%emt 0:08:58]} 41. Ba2+ {[%emt 0:00:33]} Kg7 {[%emt 0:01:15]} 42. Rf7+ {[%emt 0:00:19]} Qxf7 {[%emt 0:00:01]} 43. Bxf7 {[%emt 0:00:07]} Kxf7 {[%emt 0:04:59]} 44. Qf1+ {[%emt 0:00:29]} Ke8 {[%emt 0:00:45]} 45. Qf6 {[%emt 0:00:19]} Nc8 {[%emt 0:00:10]} 46. Qc6+ {[%emt 0:01:34]} Kd8 {[%emt 0:00:11]} 47. Ng5 {[%emt 0:00:07]} Rd7 {[%emt 0:00:29]} 48. Ne6+ {[%emt 0:00:05]} Ke7 {[%emt 0:00:06]} 49. Nxd4 {[%emt 0:00:08]} cxd4 {[%emt 0:01:21]} 50. Qxc8 {[%emt 0:00:05]} e4 {[%emt 0:00:05]} 51. Qc5+ {[%emt 0:00:11]} Rd6 {[%emt 0:00:53]} 52. Qe5+ {[%emt 0:01:44]} Re6 {[%emt 0:00:19]} 53. Qc7+ {[%emt 0:00:37]} Kf6 {[%emt 0:01:47]} 54. Qf4+ {[%emt 0:00:06]} Kg7 {[%emt 0:00:07]} 55. dxe4 {[%emt 0:00:15]} d3 {[%emt 0:00:28]} 56. e5 {[%emt 0:01:41]} Rb6 {[%emt 0:01:28]} 57. Qd4 {[%emt 0:00:13]} Re6 {[%emt 0:02:07]} 58. Qd7+ {[%emt 0:00:09]} 1-0

[Event "1st SOA-GM Festival 2024"]
[Site "Bhubaneswar"]
[Date "2024.02.01"]
[Round "5.18"]
[White "Vaibhav Jayant Raut"]
[Black "Dere Pushkar"]
[Result "0-1"]
[WhiteElo "2052"]
[BlackElo "2191"]
[PlyCount "62"]
[EventDate "2024.02.01"]
[EventType "swiss"]
[EventCountry "IND"]
[TimeControl "5400+30"]

1. c4 {[%emt 1:31:00]} c6 {[%emt 0:00:04]} 2. Nf3 {[%emt 0:00:00]} d5 {[%emt 0:00:16]} 3. e3 {[%emt 0:00:00]} Nf6 {[%emt 0:00:06]} 4. b3 {[%emt 0:00:00]} Bf5 {[%emt 0:00:11]} 5. Bb2 {[%emt 0:00:00]} h6 {[%emt 0:00:44]} 6. Nc3 {[%emt 0:00:00]} e6 {[%emt 0:00:14]} 7. Be2 {[%emt 0:00:00]} Bd6 {[%emt 0:00:16]} 8. d4 {[%emt 0:00:00]} Nbd7 {[%emt 0:02:14]} 9. O-O {[%emt 0:00:00]} Ne4 {[%emt 0:03:52]} 10. Bd3 {[%emt 0:00:00]} Bh7 {[%emt 0:14:53]} 11. Qc2 {[%emt 0:00:00]} f5 {[%emt 0:02:54]} 12. Ne2 {[%emt 0:00:00]} Qf6 {[%emt 0:04:05]} 13. Ne1 {[%emt 0:00:00]} O-O {[%emt 0:19:50]} 14. f3 {[%emt 0:00:00]} Qe7 {[%emt 0:09:49]} 15. Qd1 {[%emt 0:00:00]} g5 {[%emt 0:38:32]} 16. fxe4 {[%emt 0:00:00]} fxe4 {[%emt 0:00:00]} 17. Rxf8+ {[%emt 0:00:00]} Rxf8 {[%emt 0:00:00]} 18. Bc2 {[%emt 0:00:00]} Qf7 {[%emt 0:00:00]} 19. Kh1 {[%emt 0:00:00]} Qh5 {[%emt 0:00:00]} 20. h3 {[%emt 0:00:00]} Qh4 {[%emt 0:00:00]} 21. Nd3 {[%emt 0:00:00]} exd3 {[%emt 0:00:00]} 22. Bxd3 {[%emt 0:00:00]} g4 {[%emt 0:00:00]} 23. Bxh7+ {[%emt 0:00:00]} Kxh7 {[%emt 0:00:00]} 24. Qd3+ {[%emt 0:01:41]} Kh8 {[%emt 0:00:00]} 25. Nf4 {[%emt 0:01:47]} Bxf4 {[%emt 0:00:00]} 26. exf4 {[%emt 0:00:21]} Nf6 {[%emt 0:00:00]} 27. Ba3 {[%emt 0:04:28]} Ne4 {[%emt 0:00:00]} 28. Rf1 {[%emt 0:00:51]} Ng3+ {[%emt 0:00:00]} 29. Kg1 {[%emt 0:01:04]} gxh3 {[%emt 0:00:00]} 30. gxh3 {[%emt 0:01:45]} Rg8 {[%emt 0:00:00]} 31. Rf2 {[%emt 0:00:41]} Ne4+ {[%emt 0:00:00]} 0-1

[Event "1st SOA-GM Festival 2024"]
[Site "Bhubaneswar"]
[Date "2024.02.01"]
[Round "5.19"]
[White "Patil Priyanshu"]
[Black "Aakash Sharadchandra, Dalvi"]
[Result "1/2-1/2"]
[WhiteElo "2022"]
[BlackElo "2180"]
[PlyCount "73"]
[EventDate "2024.02.01"]
[EventType "swiss"]
[EventCountry "IND"]
[TimeControl "5400+30"]

1. e4 {[%emt 0:01:41]} c5 {[%emt 0:00:19]} 2. Nf3 {[%emt 0:00:23]} d6 {[%emt 0:00:06]} 3. d4 {[%emt 0:00:05]} cxd4 {[%emt 0:00:05]} 4. Nxd4 {[%emt 0:00:05]} Nf6 {[%emt 0:00:07]} 5. Nc3 {[%emt 0:00:01]} a6 {[%emt 0:00:06]} 6. f3 {[%emt 0:00:03]} e5 {[%emt 0:00:34]} 7. Nb3 {[%emt 0:00:03]} h5 {[%emt 0:02:48]} 8. Be3 {[%emt 0:00:37]} Be6 {[%emt 0:00:11]} 9. Qd2 {[%emt 0:03:47]} Nbd7 {[%emt 0:00:07]} 10. Nd5 {[%emt 0:00:36]} Bxd5 {[%emt 0:00:24]} 11. exd5 {[%emt 0:00:01]} g6 {[%emt 0:05:42]} 12. O-O-O {[%emt 0:00:11]} Bg7 {[%emt 0:01:17]} 13. Kb1 {[%emt 0:10:22]} Qc7 {[%emt 0:04:22]} 14. c4 {[%emt 0:13:57]} b6 {[%emt 0:08:41]} 15. Na1 {[%emt 0:01:22]} O-O {[%emt 0:01:09]} 16. Nc2 {[%emt 0:00:53]} a5 {[%emt 0:00:05]} 17. Na3 {[%emt 0:01:01]} Nc5 {[%emt 0:00:13]} 18. Nb5 {[%emt 0:00:44]} Qd7 {[%emt 0:01:17]} 19. h3 {[%emt 0:04:52]} Ne8 {[%emt 0:17:37]} 20. g4 {[%emt 0:06:31]} h4 {[%emt 0:02:05]} 21. Qf2 {[%emt 0:05:12]} Nc7 {[%emt 0:01:58]} 22. Qxh4 {[%emt 0:05:51]} Nxb5 {[%emt 0:01:16]} 23. cxb5 {[%emt 0:00:02]} Rac8 {[%emt 0:02:25]} 24. Qg5 {[%emt 0:06:38]} e4 {[%emt 0:03:33]} 25. f4 {[%emt 0:09:36]} Nd3 {[%emt 0:21:46]} 26. Rxd3 {[%emt 0:03:20]} exd3 {[%emt 0:00:15]} 27. Bxd3 {[%emt 0:00:02]} Rfe8 {[%emt 0:01:28]} 28. f5 {[%emt 0:02:39]} Bf6 {[%emt 0:15:02]} 29. Qxf6 {[%emt 0:11:15]} Rxe3 {[%emt 0:00:02]} 30. fxg6 {[%emt 0:00:38]} Rxd3 {[%emt 0:01:46]} 31. Rf1 {[%emt 0:00:04]} Rxh3 {[%emt 0:00:26]} 32. gxf7+ {[%emt 0:01:37]} Kf8 {[%emt 0:00:02]} 33. g5 {[%emt 0:00:55]} Qc7 {[%emt 0:02:58]} 34. a3 {[%emt 0:02:08]} Qc2+ {[%emt 0:01:45]} 35. Ka1 {[%emt 0:00:03]} Qc5 {[%emt 0:01:16]} 36. g6 {[%emt 0:03:13]} Rxa3+ {[%emt 0:00:10]} 37. bxa3 {[%emt 0:00:02]} 1/2-1/2

[Event "1st SOA-GM Festival 2024"]
[Site "Bhubaneswar"]
[Date "2024.02.01"]
[Round "5.20"]
[White "Pattnayak Nilsu"]
[Black "Nithin Babu"]
[Result "0-1"]
[WhiteElo "1987"]
[BlackElo "2177"]
[PlyCount "104"]
[EventDate "2024.02.01"]
[EventType "swiss"]
[EventCountry "IND"]
[TimeControl "5400+30"]

1. e4 {[%emt 0:00:29]} e5 {[%emt 0:00:06]} 2. Nf3 {[%emt 0:00:09]} Nc6 {[%emt 0:00:07]} 3. Bb5 {[%emt 0:00:20]} a6 {[%emt 0:00:08]} 4. Ba4 {[%emt 0:00:05]} Nf6 {[%emt 0:00:06]} 5. O-O {[%emt 0:00:06]} d6 {[%emt 0:00:13]} 6. Re1 {[%emt 0:00:14]} Bd7 {[%emt 0:00:33]} 7. c3 {[%emt 0:00:22]} g6 {[%emt 0:00:13]} 8. d4 {[%emt 0:00:17]} Bg7 {[%emt 0:00:15]} 9. dxe5 {[%emt 0:08:56]} Nxe5 {[%emt 0:00:24]} 10. Nxe5 {[%emt 0:00:07]} dxe5 {[%emt 0:00:15]} 11. Bxd7+ {[%emt 0:02:15]} Qxd7 {[%emt 0:00:24]} 12. Qxd7+ {[%emt 0:01:15]} Nxd7 {[%emt 0:00:03]} 13. Be3 {[%emt 0:00:05]} O-O-O {[%emt 0:00:56]} 14. Nd2 {[%emt 0:00:13]} f5 {[%emt 0:02:23]} 15. f3 {[%emt 0:05:40]} Nb6 {[%emt 0:02:24]} 16. b3 {[%emt 0:20:48]} f4 {[%emt 0:03:43]} 17. Bxb6 {[%emt 0:00:05]} Rxd2 {[%emt 0:00:56]} 18. Bf2 {[%emt 0:05:44]} Rhd8 {[%emt 0:03:25]} 19. Rec1 {[%emt 0:00:37]} Bf8 {[%emt 0:02:29]} 20. b4 {[%emt 0:00:46]} a5 {[%emt 0:10:59]} 21. a3 {[%emt 0:03:38]} Be7 {[%emt 0:04:36]} 22. Be1 {[%emt 0:00:30]} R2d3 {[%emt 0:01:54]} 23. Kf1 {[%emt 0:00:47]} g5 {[%emt 0:01:56]} 24. Ke2 {[%emt 0:07:40]} g4 {[%emt 0:05:48]} 25. fxg4 {[%emt 0:00:34]} Re3+ {[%emt 0:03:07]} 26. Kf2 {[%emt 0:01:24]} Rxe4 {[%emt 0:02:39]} 27. Rd1 {[%emt 0:00:36]} Bd6 {[%emt 0:53:58]} 28. Rd5 {[%emt 0:14:17]} b6 {[%emt 0:00:00]} 29. Rad1 {[%emt 0:01:37]} a4 {[%emt 0:00:00]} 30. R5d3 {[%emt 0:02:19]} Rc4 {[%emt 0:00:00]} 31. Kf1 {[%emt 0:02:12]} Rg8 {[%emt 0:00:00]} 32. Rh3 {[%emt 0:00:59]} Rg7 {[%emt 0:00:00]} 33. Rh5 {[%emt 0:00:52]} Kb7 {[%emt 0:00:00]} 34. h3 {[%emt 0:03:36]} Kc6 {[%emt 0:00:00]} 35. Ke2 {[%emt 0:01:02]} Re4+ {[%emt 0:00:00]} 36. Kd3 {[%emt 0:00:33]} Re3+ {[%emt 0:00:00]} 37. Kd2 {[%emt 0:00:19]} Rd7 {[%emt 0:00:00]} 38. Kc1 {[%emt 0:01:42]} Re2 {[%emt 0:00:00]} 39. c4 {[%emt 0:01:23]} Rxg2 {[%emt 0:00:00]} 40. Rxe5 {[%emt 0:01:43]} Bxe5 {[%emt 0:00:00]} 41. b5+ {[%emt 0:00:05]} Kc5 {[%emt 0:00:00]} 42. Rxd7 {[%emt 0:00:05]} Kxc4 {[%emt 0:00:00]} 43. Kd1 {[%emt 0:03:15]} Bd6 {[%emt 0:00:00]} 44. Rxh7 {[%emt 0:00:12]} Kd3 {[%emt 0:00:00]} 45. Bh4 {[%emt 0:01:25]} Rg1+ {[%emt 0:00:00]} 46. Be1 {[%emt 0:00:04]} Bxa3 {[%emt 0:00:00]} 47. Rxc7 {[%emt 0:00:10]} Bb4 {[%emt 0:00:00]} 48. Rd7+ {[%emt 0:00:05]} Kc4 {[%emt 0:00:00]} 49. Rf7 {[%emt 0:02:33]} Rxe1+ {[%emt 0:00:00]} 50. Kc2 {[%emt 0:00:03]} Re2+ {[%emt 0:00:00]} 51. Kd1 {[%emt 0:00:06]} Re4 {[%emt 0:00:38]} 52. g5 {[%emt 0:00:06]} Kb3 {[%emt 0:00:10]} 0-1